bitfinex-derivatives/quotes_ETHF0:USTF0_20251103
["timestamp","ask_amount","ask_price","bid_price","bid_amount"]
[1762176432707,6.02391398,3704.8,3704.7,2.79745]
[1762176433108,3.21113252,3704.8,3704.7,2.79745]
[1762176433313,0.00333252,3704.8,3704.7,2.79745]
[1762176434413,0.00333252,3704.8,3704.7,0.48595]
[1762176434715,2.81611398,3704.8,3704.7,1.44974036]
[1762176434912,5.19581398,3704.8,3704.7,0.96379036]
[1762176435212,2.81611398,3704.8,3704.7,1.44974036]
[1762176436706,2.81611398,3704.8,3704.6,1.44975036]
[1762176436907,0.00333252,3704.8,3704.6,1.44975036]
[1762176437114,2.81611398,3704.8,3704.7,1.44974036]
[1762176437716,2.81611398,3704.8,3704.7,3.76124036]
[1762176437914,0.00333252,3704.8,3704.7,2.79745]
[1762176438919,0.00333252,3704.8,3704.7,4.24337205]
[1762176440310,0.00333252,3704.8,3704.7,2.79745]
[1762176440618,3.2078,3705.7,3705.5,0.48584]
[1762176440812,3.2078,3705.7,3705.4,1.44990689]
[1762176441316,2.81278146,3705.6,3705.4,1.44990689]
[1762176441613,2.81494167,3705.6,3705.4,1.44990689]
[1762176442011,2.81494167,3705.6,3705.5,0.48584]
[1762176442414,2.81494167,3705.6,3705.5,1.44989689]
[1762176442917,2.81494167,3705.6,3705.5,0.96405689]
[1762176443120,5.19464167,3705.6,3705.5,0.96405689]
[1762176443316,3.6993,3705.5,3705.4,0.96405689]
[1762176443823,6.51208146,3705.5,3705.4,0.96405689]
[1762176444423,6.51208146,3705.5,3705.3,0.48587]
[1762176444618,3.6993,3705.5,3705.3,0.48587]
[1762176444922,3.6993,3705.5,3705.4,0.48586]
[1762176445120,0.00216021,3705.6,3705.5,2.79034]
[1762176445318,5.05584167,3705.6,3705.3,1.44608534]
[1762176445615,6.37478146,3705.5,3705.3,0.48587]
[1762176445922,2.81278146,3705.4,3705.3,0.48587]
[1762176446220,2.81278146,3705.4,3705.3,1.93195534]
[1762176447622,0.00216021,3705.6,3705.5,0.48584]
[1762176447923,2.81278146,3705.5,3705.4,1.93193534]
[1762176448116,2.81494167,3705.6,3705.4,1.44608534]
[1762176448421,2.81278146,3705.5,3705.4,1.44608534]
[1762176448721,2.81278146,3705.5,3705.4,1.93194534]
[1762176449022,2.81278146,3705.5,3705.4,4.33554534]
[1762176449230,2.81278146,3705.5,3705.4,2.88946]
[1762176449424,0.00216021,3705.6,3705.5,2.88944]
[1762176449812,0.00216021,3705.6,3705.5,6.76994]
[1762176450226,0.00216021,3705.6,3705.5,8.70362202]
[1762176450416,0.00216021,3705.6,3705.5,6.76994]
[1762176451119,0.00216021,3705.6,3705.5,8.7039833]
[1762176451326,0.00216021,3705.6,3705.5,2.88944]
[1762176451824,0.00216021,3705.6,3705.5,6.1444833]
[1762176452322,0.00216021,3705.6,3705.5,4.21044]
[1762176455322,3.2078,3706.1,3705.5,4.21044]
[1762176455323,3.2078,3706.1,3706.0,3.90698]
[1762176456229,3.5575,3706.0,3705.9,0.48579]
[1762176456428,6.37286764,3706.0,3705.9,0.48773629]
[1762176458624,5.00916764,3706.0,3705.9,0.48773629]
[1762176459028,2.81536764,3706.0,3705.9,2.89133629]
[1762176459235,0.00258618,3706.0,3705.9,2.89133629]
[1762176466733,0.00258618,3706.0,3705.9,4.82793365]
[1762176466939,0.00258618,3706.0,3705.9,2.89133629]
[1762176467240,6.37286764,3706.0,3705.9,0.00194629]
[1762176468634,6.37286764,3706.0,3705.9,0.48773629]
[1762176469533,6.37286764,3706.0,3705.9,0.00194629]
[1762176469934,2.81536764,3706.0,3705.9,0.00194629]
[1762176471142,5.00916764,3706.0,3705.9,0.00194629]
[1762176472541,5.00916764,3706.0,3705.9,0.48773629]
[1762176474339,6.37286764,3706.0,3705.9,0.48773629]
[1762176474741,6.37286764,3706.0,3705.9,0.00194629]
[1762176474941,6.37286764,3706.0,3705.9,0.48773629]
[1762176475337,6.37286764,3706.0,3705.9,1.9384036]
[1762176476343,6.37286764,3706.0,3705.9,2.4241936]
[1762176477041,2.81536764,3706.0,3705.9,4.8277936]
[1762176477243,2.81536764,3706.0,3705.9,2.89133629]
[1762176477642,4.5715,3707.0,3706.7,0.48568]
[1762176477843,4.5715,3707.0,3706.2,1.21435]
[1762176477844,2.3278,3707.0,3706.9,2.74716]
[1762176478048,2.3278,3707.1,3707.0,0.48564]
[1762176478440,5.14058146,3707.1,3707.0,0.48564]
[1762176478745,2.3278,3706.9,3706.8,2.42625503]
[1762176478944,5.14058146,3706.9,3706.8,2.42625503]
[1762176479144,1.3407,3707.0,3706.8,4.68775503]
[1762176479354,2.3278,3706.8,3706.7,2.42626503]
[1762176479562,5.14058146,3706.8,3706.7,2.42626503]
[1762176480060,5.14058146,3706.8,3706.7,4.68776503]
[1762176480458,5.14058146,3706.8,3706.7,1.94058503]
[1762176480654,2.3278,3706.8,3706.7,1.94058503]
[1762176480851,5.14058146,3706.8,3706.7,1.94058503]
[1762176481265,5.14058146,3706.8,3706.7,4.68776503]
[1762176481453,5.14058146,3706.8,3706.7,1.94058503]
[1762176481655,5.14058146,3706.8,3706.5,1.94058503]
[1762176481861,5.14058146,3706.6,3706.5,2.2615]
[1762176482065,5.14058146,3706.6,3706.4,1.94058503]
[1762176482066,3.6685,3706.5,3706.4,1.94058503]
[1762176482266,5.14058146,3706.5,3706.4,4.20208503]
[1762176482564,5.14058146,3706.5,3706.4,4.68780503]
[1762176482963,6.48128146,3706.5,3706.4,4.68780503]
[1762176483265,6.48128146,3706.5,3706.4,4.20208503]
[1762176483466,6.48128146,3706.5,3706.4,1.94058503]
[1762176483971,2.3278,3706.4,3706.3,2.42632503]
[1762176484262,5.14058146,3706.4,3706.3,2.42632503]
[1762176484666,5.14058146,3706.4,3706.3,0.48574]
[1762176485063,2.81278146,3706.4,3706.3,0.48574]
[1762176485366,5.14058146,3706.4,3706.2,2.42632503]
[1762176485759,5.14058146,3706.4,3706.3,0.48574]
[1762176487370,5.14058146,3706.4,3706.3,2.74724]
[1762176489761,5.14058146,3706.4,3706.2,1.94058503]
[1762176490065,2.3278,3706.3,3706.2,1.94058503]
[1762176490260,5.14058146,3706.3,3706.2,1.94058503]
[1762176490566,5.14058146,3706.3,3706.2,2.42633503]
[1762176490760,5.14058146,3706.3,3706.2,4.68783503]
[1762176491161,5.14058146,3706.3,3706.2,1.94058503]
[1762176492069,5.14058146,3706.3,3706.2,2.42633503]
[1762176492568,5.14058146,3706.3,3706.2,4.68783503]
[1762176493269,5.14058146,3706.3,3706.2,4.20208503]
[1762176493458,5.14058146,3706.3,3706.2,2.2615]
[1762176494573,5.14058146,3706.3,3706.2,2.74725]
[1762176495167,5.14058146,3706.3,3706.2,4.68783503]
[1762176496761,2.81278146,3706.3,3706.2,4.68783503]
[1762176496967,1.3407,3706.5,3706.4,2.74722]
[1762176497162,3.6685,3706.5,3706.4,0.48572]
[1762176497369,6.48128146,3706.5,3706.4,0.48572]
[1762176497977,2.3278,3706.4,3706.3,0.48573]
[1762176498274,5.14058146,3706.4,3706.3,0.48573]
[1762176502374,5.14058146,3706.4,3706.3,2.42631503]
[1762176503471,5.14058146,3706.4,3706.3,1.94058503]
[1762176503774,2.3278,3706.3,3706.2,0.48574]
[1762176504374,5.14058146,3706.3,3706.2,0.48574]
[1762176505467,2.81278146,3706.3,3706.2,4.68782503]
[1762176505672,5.22568146,3706.3,3706.2,2.74724]
[1762176506872,2.81278146,3706.3,3706.1,0.48576]
[1762176507073,2.3261,3706.2,3706.1,0.48576]
[1762176507473,5.13888146,3706.2,3706.1,0.48576]
[1762176508171,5.13888146,3706.2,3706.1,2.87546]
[1762176509171,2.81278146,3706.2,3706.1,2.87546]
[1762176509872,3.7176,3706.5,3706.4,0.48573]
[1762176510072,3.7176,3706.5,3706.4,2.42736962]
[1762176510273,6.53038146,3706.5,3706.4,2.42736962]
[1762176510771,6.53038146,3706.5,3706.4,1.94163962]
[1762176511573,6.53038146,3706.5,3706.4,2.42736962]
[1762176511774,6.53038146,3706.5,3706.4,1.94163962]
[1762176512076,3.6571,3706.0,3705.9,0.00194629]
[1762176512378,6.46988146,3706.0,3705.9,0.48773629]
[1762176512778,6.46988146,3706.0,3705.9,0.00194629]
[1762176513680,6.46988146,3706.0,3705.9,0.48773629]
[1762176513876,2.3261,3706.4,3706.3,0.48573]
[1762176514179,5.13888146,3706.4,3706.3,0.48573]
[1762176515576,5.13888146,3706.4,3706.1,0.48575]
[1762176515777,2.81278146,3706.3,3706.2,2.87545]
[1762176515978,5.13888146,3706.3,3706.2,2.87545]
[1762176516276,5.13888146,3706.3,3706.2,0.48575]
[1762176518282,5.13888146,3706.3,3706.2,2.87545]
[1762176518578,2.81278146,3706.3,3706.2,2.87545]
[1762176522077,3.2078,3706.7,3706.6,0.4857]
[1762176522279,3.6668,3707.0,3706.9,0.48566]
[1762176522484,3.210226,3707.1,3707.0,4.29435]
[1762176522485,0.002426,3707.1,3707.0,4.29435]
[1762176522683,2.81520746,3707.1,3707.0,4.29435]
[1762176524280,2.81520746,3707.1,3707.0,6.23292478]
[1762176524482,5.14130746,3707.1,3707.0,1.93857478]
[1762176524684,2.3261,3707.0,3706.9,2.42423478]
[1762176524884,2.3261,3707.0,3706.9,2.87536]
[1762176525088,5.13888146,3707.0,3706.9,2.87536]
[1762176525285,5.13888146,3707.0,3706.9,4.81333469]
[1762176525480,2.81278146,3707.0,3706.9,4.81333469]
[1762176525681,2.81278146,3707.0,3706.9,2.87536]
[1762176526384,2.81278146,3707.0,3706.9,4.81280281]
[1762176527680,0.002426,3707.1,3707.0,2.87535]
[1762176527881,0.002426,3707.1,3707.0,4.29435]
[1762176531985,2.328526,3707.1,3707.0,2.87535]
[1762176532384,2.328526,3707.1,3707.0,4.29435]
[1762176534093,0.002426,3707.1,3707.0,4.29435]
[1762176534289,2.328526,3707.1,3707.0,1.90464]
[1762176534492,5.14130746,3707.1,3707.0,2.87534]
[1762176534793,5.14130746,3707.1,3707.0,4.29434]
[1762176534992,5.14130746,3707.1,3707.0,0.48564]
[1762176535295,5.14130746,3707.1,3707.0,2.80754]
[1762176535492,0.002426,3707.1,3707.0,4.18584]
[1762176543707,3.2078,3708.0,3707.9,2.3219]
[1762176543906,12.98,3708.4,3707.9,2.3219]
[1762176543907,12.98,3708.4,3708.3,0.48548]
[1762176544201,2.2129,3708.3,3708.2,0.48548]
[1762176544398,2.2129,3708.2,3708.1,0.48549]
[1762176544603,2.81278146,3708.2,3708.1,2.80739]
[1762176544804,2.81565875,3708.2,3708.1,2.80739]
[1762176545200,0.00287729,3708.2,3708.1,2.80739]
[1762176552922,2.81565875,3708.2,3708.1,2.80739]
[1762176553115,2.2129,3707.8,3707.6,2.4209012]
[1762176553318,2.2129,3707.8,3707.7,12.92946]
[1762176553519,1.391,3708.0,3707.7,12.92946]
[1762176553817,2.81278146,3707.9,3707.8,2.80745]
[1762176554017,2.81278146,3708.1,3707.8,2.80745]
[1762176554219,2.81278146,3708.0,3707.8,2.80745]
[1762176554620,2.81278146,3707.9,3707.8,2.80745]
[1762176554816,2.81278146,3708.1,3707.9,0.48552]
[1762176555018,2.81278146,3708.1,3708.0,2.80741]
[1762176555219,3.21067729,3708.2,3708.1,2.80741]
[1762176555417,3.21067729,3708.2,3708.1,3.77324168]
[1762176555617,8.23635875,3708.2,3708.1,3.77324168]
[1762176557224,8.23635875,3708.2,3708.1,1.45134168]
[1762176558722,8.23635875,3708.2,3708.1,4.25875168]
[1762176558922,8.23635875,3708.2,3708.1,2.80741]
[1762176559927,8.23635875,3708.2,3708.1,2.3219]
[1762176560321,8.23635875,3708.2,3707.9,0.48553]
[1762176560322,2.2129,3708.0,3707.9,0.48553]
[1762176560517,5.02568146,3708.0,3707.9,0.48553]
[1762176560926,5.02568146,3708.0,3707.9,2.80743]
[1762176562432,5.02568146,3708.0,3707.9,0.48553]
[1762176563024,5.02568146,3708.0,3707.9,2.3219]
[1762176563219,5.02568146,3708.0,3707.5,1.3783]
[1762176563440,5.02568146,3708.0,3707.3,1.9353312]
[1762176563441,2.2129,3707.4,3707.3,1.9353312]
[1762176563628,5.4207,3707.4,3707.3,10.114]
[1762176563930,8.23348146,3707.4,3707.3,10.114]
[1762176564524,8.23348146,3707.4,3707.3,10.59961]
[1762176571737,8.23348146,3707.4,3707.3,10.114]
[1762176572242,8.23348146,3707.4,3707.3,10.59961]
[1762176572631,8.23348146,3707.4,3707.3,10.114]
[1762176578543,8.23348146,3707.4,3707.3,12.80531]
[1762176578942,8.23348146,3707.4,3707.3,10.59961]
[1762176579143,8.23348146,3707.4,3707.3,10.114]
[1762176580543,21.21348146,3707.4,3707.3,10.114]
[1762176582239,5.15558146,3707.1,3707.0,1.83723268]
[1762176582441,5.15558146,3707.1,3706.4,2.2057]
[1762176582442,2.3428,3706.5,3706.4,2.2057]
[1762176582744,3.3842,3706.5,3706.0,11.6732707]
[1762176582949,2.81278146,3706.3,3706.2,2.2057]
[1762176583138,2.81278146,3706.3,3706.2,2.69145]
[1762176585049,5.15558146,3706.3,3706.2,0.48575]
[1762176585348,5.15558146,3706.3,3706.2,2.69145]
[1762176586347,8.36338146,3706.3,3706.2,2.2057]
[1762176586544,2.3428,3706.1,3706.0,10.097]
[1762176586748,5.15558146,3706.1,3706.0,10.097]
[1762176587146,5.15558146,3706.1,3706.0,13.7373]
[1762176587346,5.15558146,3706.1,3706.0,14.22308]
[1762176589354,18.13558146,3706.1,3706.0,14.22308]
[1762176593550,15.79278146,3706.1,3706.0,14.22308]
[1762176599559,18.19858146,3706.1,3706.0,14.22308]
[1762176600554,5.21858146,3706.1,3706.0,14.22308]
[1762176601363,5.21858146,3706.1,3706.0,16.15887587]
[1762176601564,2.81278146,3706.1,3706.0,16.15887587]
[1762176605261,3.2078,3706.7,3706.6,2.3725]
[1762176605468,3.2078,3707.1,3707.0,4.20135]
[1762176605767,2.81278146,3707.5,3707.4,2.8581]
[1762176605973,3.2078,3707.6,3707.5,2.85808]
[1762176606160,3.2078,3707.6,3707.5,4.20128]
[1762176606161,6.02058146,3707.6,3707.5,4.20128]
[1762176606669,2.81278146,3707.6,3707.5,4.20128]
[1762176607577,3.2078,3708.0,3707.9,2.85803]
[1762176607767,3.2078,3708.0,3707.9,4.30960013]
[1762176607963,6.02058146,3708.0,3707.9,3.82407013]
[1762176608273,8.42638146,3708.0,3707.9,2.3725]
[1762176608574,2.4058,3707.9,3707.8,0.48554]
[1762176608769,5.21858146,3707.9,3707.8,2.85804]
[1762176608972,2.81278146,3707.9,3707.8,2.85804]
[1762176611478,3.2078,3708.8,3708.7,2.85793]
[1762176611674,3.2078,3709.2,3709.1,2.85787]
[1762176612179,1.3353,3710.5,3709.6,2.85781]
[1762176612180,3.2078,3709.7,3709.6,2.85781]
[1762176612369,5.6136,3709.7,3709.6,12.4365]
[1762176612567,8.42638146,3709.7,3709.6,10.064]
[1762176612769,8.42950516,3709.7,3709.6,10.06633357]
[1762176613070,3.2078,3710.1,3710.0,4.20096]
[1762176613274,3.2078,3710.1,3710.0,5.16385485]
[1762176613471,6.02058146,3710.1,3710.0,5.16385485]
[1762176613664,3.2078,3710.1,3710.0,5.16385485]
[1762176614172,3.2078,3710.1,3710.0,4.20096]
[1762176614871,3.21068937,3710.1,3710.0,4.20096]
[1762176616874,6.02347083,3710.1,3710.0,4.20096]
[1762176617174,3.21068937,3710.1,3710.0,4.20096]
[1762176617376,3.2078,3710.7,3710.5,1.3432]
[1762176617576,5.6136,3710.7,3710.6,10.054]
[1762176617875,8.42638146,3710.7,3710.6,10.054]
[1762176618274,8.42889775,3710.7,3710.6,10.054]
[1762176618479,3.21031629,3710.7,3710.6,12.4265]
[1762176618774,2.81529775,3710.7,3710.6,12.4265]
[1762176619169,0.00251629,3710.7,3710.6,12.4265]
[1762176620679,0.00251629,3710.7,3710.6,12.91168]
[1762176621277,3.2078,3711.5,3711.3,0.48508]
[1762176621477,6.8441,3711.5,3711.4,10.047]
[1762176621979,9.65688146,3711.5,3711.4,10.047]
[1762176622281,9.65941116,3711.5,3711.4,10.047]
[1762176624272,8.42891116,3711.5,3711.4,10.047]
[1762176624674,8.42891116,3711.5,3711.4,12.4195]
[1762176625286,6.02311116,3711.5,3711.4,12.4195]
[1762176625581,6.02311116,3711.5,3711.4,12.90457]
[1762176626381,0.0025297,3711.5,3711.4,12.90457]
[1762176627475,2.2685,3712.5,3712.4,2.77144]
[1762176627677,3.2078,3713.2,3712.5,4.09793]
[1762176627877,2.81278146,3712.8,3712.7,2.2865]
[1762176628179,3.2078,3713.2,3713.1,2.2865]
[1762176628376,5.4763,3713.2,3713.1,12.32449371]
[1762176628576,8.29150012,3713.2,3713.1,12.32449371]
[1762176628883,8.29150012,3713.2,3713.1,10.03699371]
[1762176629179,8.29150012,3713.2,3713.1,0.00299371]
[1762176630979,6.02300012,3713.2,3713.1,0.00299371]
[1762176631181,6.02300012,3713.2,3713.1,2.28949371]
[1762176633278,6.02300012,3713.2,3713.1,2.77434371]
[1762176633680,2.81520012,3713.2,3713.1,2.77434371]
[1762176634182,5.08370012,3713.2,3713.1,2.28949371]
[1762176634579,2.81520012,3713.2,3713.1,2.77434371]
[1762176634985,8.29150012,3713.2,3713.1,0.00299371]
[1762176635479,8.29150012,3713.2,3713.1,10.02599371]
[1762176636677,8.29150012,3713.2,3713.1,10.02399371]
[1762176638293,2.81520012,3713.2,3713.1,12.79534371]
[1762176639385,0.00241866,3713.2,3713.1,12.79534371]
[1762176640183,3.2078,3714.0,3713.1,12.31049371]
[1762176640383,12.98,3714.9,3713.1,12.31049371]
[1762176640384,12.98,3714.9,3714.0,1.3265]
[1762176640587,12.98,3714.9,3714.4,0.48468]
[1762176640588,6.02058146,3714.9,3714.4,0.48468]
[1762176640788,2.81278146,3714.8,3714.5,1.81116]
[1762176641286,2.81278146,3714.6,3714.5,4.09766]
[1762176642087,0.00199123,3714.8,3714.7,2.77114]
[1762176642289,2.27049123,3714.8,3714.7,2.2865]
[1762176642488,2.27049123,3714.8,3714.3,44.92922422]
[1762176642489,2.2685,3714.4,3714.3,3.40957869]
[1762176642792,5.08128146,3714.4,3714.3,5.4943]
[1762176643091,2.2685,3714.3,3714.2,40.8]
[1762176643290,5.08128146,3714.3,3714.2,50.81]
[1762176643495,5.08128146,3714.3,3714.2,10.01]
[1762176644382,5.08128146,3714.3,3714.2,12.2965]
[1762176644589,5.08128146,3714.3,3714.2,2.2865]
[1762176644788,5.08128146,3714.3,3714.2,12.2955]
[1762176645695,5.08128146,3714.3,3714.2,10.009]
[1762176646893,5.08128146,3714.3,3714.2,12.2955]
[1762176647093,5.08128146,3714.3,3714.2,12.78021]
[1762176647391,2.81278146,3714.3,3714.2,12.2955]
[1762176647592,5.08128146,3714.3,3714.2,12.2955]
[1762176648290,2.2685,3714.0,3713.8,41.51964553]
[1762176648484,5.08128146,3713.9,3713.8,0.71964553]
[1762176648690,5.08128146,3713.9,3713.8,10.001]
[1762176648984,5.08128146,3713.9,3713.7,3.92744553]
[1762176649192,5.08128146,3713.8,3713.7,2.2865]
[1762176649387,5.08128146,3713.8,3713.7,12.2865]
[1762176649786,2.2685,3713.6,3713.5,0.71964553]
[1762176649988,5.08128146,3713.6,3713.5,9.999]
[1762176650193,5.08128146,3713.6,3713.5,10.71864553]
[1762176650395,5.08128146,3713.6,3713.5,9.999]
[1762176650595,2.2685,3713.3,3713.1,0.72263924]
[1762176650796,2.2685,3713.3,3713.2,9.998]
[1762176651096,5.08128146,3713.2,3713.1,0.00299371]
[1762176651291,2.2685,3713.2,3713.1,10.00099371]
[1762176651591,5.08128146,3713.2,3713.1,9.99999371]
[1762176652591,5.08128146,3713.2,3713.1,9.99899371]
[1762176654198,5.08128146,3713.2,3713.1,0.72263924]
[1762176654389,8.28908146,3713.2,3713.1,0.00299371]
[1762176656894,5.08128146,3713.2,3713.1,0.00299371]
[1762176657398,8.28908146,3713.2,3713.1,0.00299371]
[1762176659602,5.08128146,3713.2,3713.1,0.72263924]
[1762176659791,5.08128146,3713.2,3713.1,0.00299371]
[1762176659996,5.08128146,3713.2,3713.1,0.96333035]
[1762176660294,5.08128146,3713.2,3713.1,0.72662169]
[1762176660802,5.08128146,3713.2,3713.1,0.00299371]
[1762176663605,5.08128146,3713.2,3713.1,3.0835389]
[1762176663795,3.2078,3713.3,3713.1,2.35989371]
[1762176664002,1.3628,3714.0,3713.3,0.48482]
[1762176664197,1.3628,3714.0,3713.7,0.72335078]
[1762176664398,3.2078,3714.3,3713.9,2.3569]
[1762176664602,2.3802,3714.1,3714.0,0.48473]
[1762176664802,2.81278146,3714.1,3714.0,5.22156664]
[1762176664993,2.81278146,3714.1,3714.0,4.73683664]
[1762176665698,2.81278146,3714.1,3714.0,3.7765]
[1762176666605,3.7723,3714.0,3713.9,1.35003467]
[1762176666798,2.3802,3713.9,3713.8,0.72326551]
[1762176666997,3.2078,3714.1,3713.8,0.72326551]
[1762176667194,2.81278146,3713.9,3713.8,2.3569]
[1762176667997,2.3802,3713.6,3713.1,1.83598277]
[1762176668195,1.3921,3714.0,3713.1,1.83598277]
[1762176668196,2.3802,3713.2,3713.1,0.00299371]
[1762176668397,5.19298146,3713.2,3713.1,0.00299371]
[1762176669402,5.19298146,3713.2,3713.1,0.72642122]
[1762176670000,5.19298146,3713.2,3713.1,0.00299371]
[1762176671604,5.19298146,3713.2,3713.1,0.72642122]
[1762176672008,5.19298146,3713.2,3713.1,0.00299371]
[1762176672204,5.19298146,3713.2,3713.1,3.32441567]
[1762176672505,4.2336,3714.5,3713.6,0.48478]
[1762176672704,2.3802,3714.1,3714.0,0.72364556]
[1762176673107,5.19298146,3714.1,3713.5,1.4196]
[1762176673310,2.81278146,3714.0,3713.8,0.48476]
[1762176673512,2.81278146,3714.3,3714.0,1.4196]
[1762176673715,2.3802,3713.6,3713.1,0.00299371]
[1762176674007,2.3802,3713.6,3713.2,9.971]
[1762176674208,2.81278146,3713.5,3713.3,10.45582]
[1762176674410,2.81278146,3713.8,3713.4,2.3569]
[1762176674609,2.81278146,3713.8,3713.4,2.84171]
[1762176674809,2.81278146,3713.6,3713.4,2.3569]
[1762176675005,2.3802,3713.5,3713.4,2.3569]
[1762176675214,2.3802,3713.4,3713.3,9.971]
[1762176675512,5.19298146,3713.4,3713.3,9.971]
[1762176676214,2.81278146,3713.4,3713.3,12.3279]
[1762176676607,4.2336,3714.5,3714.0,3.2157]
[1762176676805,4.2336,3714.5,3714.4,0.72411409]
[1762176677005,6.6138,3714.5,3714.4,0.72411409]
[1762176677199,9.42658146,3714.5,3714.4,0.72411409]
[1762176678209,2.3802,3714.3,3714.2,0.96548546]
[1762176678400,5.19298146,3714.3,3713.8,3.2078]
[1762176678604,2.81278146,3714.1,3714.0,3.7765]
[1762176678804,2.81278146,3714.2,3714.1,2.3569]
[1762176679405,2.3802,3714.1,3713.8,3.2078]
[1762176679607,2.81278146,3714.0,3713.9,2.3569]
[1762176679806,2.81278146,3714.2,3713.9,2.3569]
[1762176680010,2.3802,3714.0,3713.9,2.3569]
[1762176680409,5.19298146,3714.0,3713.9,2.3569]
[1762176680709,7.41268146,3714.0,3713.6,1.9310254]
[1762176680902,5.19298146,3713.7,3713.3,0.48482]
[1762176681307,2.81278146,3713.6,3713.3,0.48482]
[1762176681503,2.81278146,3713.8,3713.2,9.963]
[1762176681709,2.81278146,3713.8,3713.5,1.4196]
[1762176681913,2.81278146,3713.6,3713.5,3.7765]
[1762176682111,2.3802,3713.6,3713.3,0.48482]
[1762176682311,5.19298146,3713.6,3713.3,0.48482]
[1762176682507,2.3802,3713.4,3713.2,9.963]
[1762176682709,2.3802,3713.3,3713.2,9.963]
[1762176683013,2.3802,3713.3,3713.1,0.00299371]
[1762176683014,2.3802,3713.2,3713.1,0.00299371]
[1762176683215,8.40078146,3713.2,3713.1,0.00299371]
[1762176683406,8.40078146,3713.2,3713.1,0.72733414]
[1762176684214,8.40078146,3713.2,3713.1,0.00299371]
[1762176684918,8.40078146,3713.2,3713.1,0.72733414]
[1762176685220,8.40078146,3713.2,3713.1,0.96874558]
[1762176685811,8.40078146,3713.2,3713.1,0.00299371]
[1762176688309,8.40078146,3713.2,3713.1,0.96874558]
[1762176688511,3.2078,3713.2,3713.1,2.18209371]
[1762176688712,2.81278146,3713.3,3713.2,2.80994]
[1762176688908,3.2078,3713.6,3713.3,0.48482]
[1762176689108,8.34508146,3713.6,3713.4,1.9331841]
[1762176689308,3.2078,3713.6,3713.5,15.1664741]
[1762176689513,5.5323,3713.6,3713.5,9.954]
[1762176689712,2.81278146,3713.6,3713.5,13.7181]
[1762176690114,2.81278146,3713.6,3713.5,9.953]
[1762176690115,5.13728146,3713.6,3713.5,9.953]
[1762176690315,5.13728146,3713.6,3713.5,11.40135142]
[1762176695018,2.81278146,3713.6,3713.5,13.7171]
[1762176697534,5.13728146,3713.6,3713.5,9.953]
[1762176697723,5.13728146,3713.6,3713.5,12.2781]
[1762176697924,2.81278146,3713.6,3713.5,13.7171]
[1762176698925,3.2078,3713.8,3713.5,14.20189]
[1762176699230,3.2078,3714.4,3713.7,2.3251]
[1762176699429,5.13728146,3714.3,3714.2,0.96604235]
[1762176699629,2.3245,3714.3,3714.2,10.90904235]
[1762176699828,2.81278146,3714.3,3714.2,13.71716352]
[1762176700022,3.2078,3714.4,3714.2,12.2681]
[1762176700220,1.3628,3715.0,3714.3,2.3251]
[1762176700221,3.20979123,3714.8,3714.3,2.3251]
[1762176700528,5.13728146,3714.7,3714.6,0.9658904]
[1762176700733,2.3245,3714.7,3714.6,0.9658904]
[1762176701037,2.81278146,3714.7,3714.6,0.9658904]
[1762176701338,5.13728146,3714.7,3714.6,0.9658904]
[1762176701731,2.3245,3714.6,3714.5,0.9658904]
[1762176701930,3.20979123,3714.8,3714.4,0.9658904]
[1762176701931,3.4143,3714.5,3714.4,0.9658904]
[1762176702233,3.65660808,3714.5,3714.4,0.72451907]
[1762176702435,6.46938954,3714.5,3714.4,0.72451907]
[1762176703733,2.3245,3714.3,3714.0,1.4488356]
[1762176704036,2.81278146,3714.1,3714.0,5.2129356]
[1762176704229,5.13728146,3714.1,3714.0,3.7739356]
[1762176704631,5.13728146,3714.1,3714.0,1.4488356]
[1762176704935,3.6888,3714.0,3713.9,1.4488356]
[1762176705238,6.8966,3714.0,3713.9,1.4488356]
[1762176705430,2.3245,3713.9,3713.8,1.4488356]
[1762176705631,5.13728146,3713.9,3713.8,1.4488356]
[1762176705833,3.0754005,3713.9,3713.8,0.96625623]
[1762176706029,2.3245,3713.8,3713.7,0.96625623]
[1762176706232,2.3245,3713.7,3713.6,0.96625623]
[1762176706433,5.13728146,3713.7,3713.6,0.96625623]
[1762176710236,5.39997965,3713.7,3713.6,0.96625623]
[1762176711341,3.6888,3713.5,3713.4,1.4488356]
[1762176711541,6.50158146,3713.5,3713.4,1.4488356]
[1762176712538,5.13728146,3713.5,3713.4,1.4488356]
[1762176712745,6.50158146,3713.5,3713.4,1.4488356]
[1762176715345,6.50158146,3713.5,3713.3,9.935]
[1762176715644,2.81278146,3713.4,3713.3,12.3097]
[1762176715945,2.81278146,3713.8,3713.3,12.3097]
[1762176716145,2.2318,3713.4,3713.3,9.935]
[1762176716345,5.04458146,3713.4,3713.3,9.935]
[1762176720552,3.2078,3714.0,3713.3,14.2407254]
[1762176720849,2.81278146,3713.9,3713.8,2.3747]
[1762176721052,2.81278146,3714.3,3713.8,12.2947]
[1762176721351,2.49478427,3714.2,3714.1,1.4508523]
[1762176721652,2.2318,3714.1,3714.0,1.4508523]
[1762176721845,2.81278146,3713.9,3713.8,12.2947]
[1762176723955,3.2078,3714.4,3714.3,2.3747]
[1762176724147,8.25238146,3714.4,3714.3,2.3747]
[1762176724547,6.02058146,3714.4,3714.3,2.3747]
[1762176725142,2.81278146,3714.4,3714.3,2.3747]
[1762176728350,2.81278146,3714.4,3714.3,12.2857]
[1762176730555,3.2078,3714.9,3714.7,2.3747]
[1762176730754,3.2078,3714.9,3714.7,3.82417828]
[1762176730959,5.04657269,3714.8,3714.7,3.82417828]
[1762176731154,5.04657269,3714.8,3714.7,1.44947828]
[1762176733260,5.04657269,3714.8,3714.6,1.44947828]
[1762176733458,2.81278146,3714.7,3714.6,3.82417828]
[1762176733647,5.04458146,3714.7,3714.6,1.44947828]
[1762176734051,2.2318,3714.6,3714.5,1.44947828]
[1762176734457,5.04458146,3714.6,3714.5,1.44947828]
[1762176734651,5.04458146,3714.6,3714.5,2.3747]
[1762176735254,5.04458146,3714.6,3714.5,5.19121822]
[1762176737451,2.81278146,3714.6,3714.5,5.19121822]
[1762176737846,9.9,3716.1,3714.5,5.19121822]
[1762176737847,3.2078,3715.7,3715.1,2.3747]
[1762176738058,16.1878,3715.7,3715.1,12.2747]
[1762176738357,2.81278146,3715.5,3715.4,3.8222379]
[1762176738554,5.04458146,3715.5,3715.4,3.8222379]
[1762176738751,5.04709695,3715.5,3715.4,13.7202379]